lending/lending_fUSD_20250121
["ID","MTS","AMOUNT","RATE_DAILY","PERIOD"]
[349796225,1737433846154,-500.0,0.00019998,2]
[349796226,1737433846164,-500.0,0.00019998,2]
[349796227,1737433846174,-635.19,0.00019998,2]
[349796228,1737433846183,-502.46,0.00019998,2]
[349796229,1737433846193,-508.15524694,0.00019998,2]
[349796230,1737433846202,-940.46,0.00019998,2]
[349796232,1737433846213,-500.0,0.00019998,2]
[349796233,1737433846223,-513.5565062,0.00019998,2]
[349796234,1737433846232,-685.84,0.00019998,2]
[349796237,1737433846250,-1735.78,0.00019998,2]
[349796239,1737433846260,-500.0,0.00019998,2]
[349796240,1737433846270,-500.0,0.00019998,2]
[349796242,1737433846279,-300.0,0.00019999,2]
[349796243,1737433846289,-566.64,0.00019999,2]
[349796244,1737433846299,-500.0,0.00019999,2]
[349796245,1737433846309,-500.0,0.00019999,2]
[349796246,1737433846318,-500.0,0.00019999,2]
[349796247,1737433846328,-500.0,0.00019999,2]
[349796248,1737433846337,-500.0,0.00019999,2]
[349796249,1737433846347,-500.0,0.00019999,2]
[349796250,1737433846357,-500.0,0.00019999,2]
[349796251,1737433846367,-500.0,0.00019999,2]
[349796252,1737433846376,-1334.1,0.00019999,2]
[349796253,1737433846386,-265.49391343,0.00019999,2]
[349796254,1737433846395,-576.6,0.00019999,2]
[349796255,1737433846405,-500.0,0.00019999,2]
[349796256,1737433846415,-500.0,0.00019999,2]
[349796257,1737433846425,-500.0,0.00019999,2]
[349796258,1737433846435,-500.0,0.00019999,2]
[349796259,1737433846445,-500.0,0.00019999,2]
[349796260,1737433846455,-85357.22805677,0.0002,14]
[349796261,1737433846464,-1391.73885533,0.0002,5]
[349796262,1737433846474,-201.14455577,0.0002,2]
[349796263,1737433846483,-651.2,0.0002,2]
[349796264,1737433846497,-581.24,0.0002,2]
[349796265,1737433846506,-2746.53837325,0.0002,2]
[349796266,1737433846517,-1294.73,0.0002,2]
[349796267,1737433846527,-500.0,0.0002,2]
[349796268,1737433846537,-902.8,0.0002,2]
[349796269,1737433846547,-1475.03,0.0002,2]
[349796270,1737433846556,-879.63,0.0002,2]
[349796271,1737433846567,-1069.94,0.0002,2]
[349796272,1737433846576,-500.0,0.0002,2]
[349796273,1737433846586,-569.35,0.0002,2]
[349796274,1737433846596,-676.8,0.0002,2]
[349796275,1737433846606,-1251.4,0.0002,2]
[349796276,1737433846615,-1689.0,0.0002,2]
[349796277,1737433846625,-638.28,0.0002,2]
[349796278,1737433846634,-576.63,0.0002,2]
[349796279,1737433846644,-1637.61,0.0002,2]
[349796280,1737433846653,-500.0,0.0002,2]
[349796281,1737433846663,-500.0,0.0002,2]
[349796282,1737433846672,-500.0,0.0002,2]
[349796283,1737433846682,-795.98,0.0002,2]
[349796284,1737433846691,-500.0,0.0002,2]
[349796285,1737433846700,-1431.77,0.0002,2]
[349796286,1737433846709,-500.0,0.0002,2]
[349796287,1737433846719,-500.0,0.0002,2]
[349796288,1737433846729,-50000.0,0.000201,2]
[349796289,1737433846740,-414.30244784,0.00020129,2]
[349796290,1737433846749,-167.23157823,0.00020172,2]
[349796291,1737433846758,-210.0,0.0002019,2]
[349796292,1737433846768,-206.63013759,0.00020233,2]
[349796293,1737433846778,-500.0,0.0002027,2]
[349796294,1737433846787,-659.87,0.0002027,2]
[349796295,1737433846796,-708.04,0.0002027,2]
[349796296,1737433846807,-1068.35,0.0002027,2]
[349796297,1737433846817,-500.0,0.0002027,2]
[349796298,1737433846826,-500.0,0.0002027,2]
[349796299,1737433846837,-1199.12,0.0002027,2]
[349796301,1737433846846,-924.69,0.0002027,2]
[349796303,1737433846856,-500.0,0.0002027,2]
[349796305,1737433846866,-2010.2,0.0002027,2]
[349796307,1737433846875,-750.23,0.0002027,2]
[349796308,1737433846885,-500.0,0.0002027,2]
[349796310,1737433846895,-1053.1,0.0002027,2]
[349796312,1737433846905,-745.4,0.0002027,2]
[349796314,1737433846914,-500.0,0.00020271,2]
[349796315,1737433846924,-500.0,0.00020271,2]
[349796317,1737433846934,-500.0,0.00020271,2]
[349796319,1737433846943,-500.0,0.00020271,2]
[349796320,1737433846953,-500.0,0.00020271,2]
[349796322,1737433846963,-500.0,0.00020271,2]
[349796330,1737433847173,-500.0,0.00020271,2]
[349796331,1737433847190,-500.0,0.00020271,2]
[349796332,1737433847200,-416.68967748,0.00020271,2]
[349796333,1737433847209,-500.0,0.00020271,2]
[349796334,1737433847218,-500.0,0.00020271,2]
[349796335,1737433847227,-500.0,0.00020271,2]
[349796336,1737433847238,-197.64529,0.00020271,2]
[349796337,1737433847249,-507.62,0.00020271,2]
[349796338,1737433847258,-500.0,0.00020271,2]
[349796339,1737433847267,-503.07,0.00020271,2]
[349796340,1737433847277,-174.199579,0.00020271,2]
[349796341,1737433847286,-500.0,0.00020271,2]
[349796342,1737433847295,-500.0,0.00020271,2]
[349796343,1737433847304,-509.9,0.00020271,2]
[349796344,1737433847313,-530.80628343,0.00020271,2]
[349796345,1737433847323,-500.0,0.00020271,2]
[349796346,1737433847332,-272.941629,0.00020271,2]
[349796347,1737433847341,-566.18,0.00020271,2]
[349796348,1737433847350,-500.0,0.00020271,2]
[349796349,1737433847359,-500.0,0.00020271,2]
[349796350,1737433847368,-500.0,0.00020271,2]
[349796351,1737433847377,-500.0,0.00020271,2]
[349796352,1737433847386,-1178.4,0.00020271,2]
[349796353,1737433847395,-500.0,0.00020271,2]
[349796354,1737433847404,-173.748948,0.00020271,2]
[349796355,1737433847414,-821.32,0.00020271,2]
[349796356,1737433847423,-1322.96,0.00020271,2]
[349796357,1737433847432,-527.22547369,0.00020271,2]
[349796358,1737433847442,-1661.3,0.00020271,2]
[349796359,1737433847451,-203.618385,0.00020271,2]
[349796360,1737433847461,-516.86483823,0.00020271,2]
[349796361,1737433847470,-1983.15,0.00020271,2]
[349796362,1737433847480,-775.24,0.00020271,2]
[349796363,1737433847491,-627.86150707,0.00020271,2]
[349796364,1737433847501,-1911.41,0.00020271,2]
[349796365,1737433847510,-500.0,0.00020271,2]
[349796366,1737433847519,-174.057901,0.00020271,2]
[349796367,1737433847529,-500.0,0.00020271,2]
[349796368,1737433847538,-2632.11,0.00020271,2]
[349796369,1737433847547,-500.0,0.00020271,2]
[349796370,1737433847556,-204.340406,0.00020271,2]
[349796371,1737433847566,-500.0,0.00020271,2]
[349796372,1737433847575,-500.0,0.00020271,2]
[349796373,1737433847585,-500.0,0.00020271,2]
[349796374,1737433847594,-731.98,0.00020271,2]
[349796375,1737433847603,-1601.06,0.00020271,2]
[349796376,1737433847612,-842.77,0.00020271,2]
[349796377,1737433847622,-519.16228559,0.00020271,2]
[349796378,1737433847631,-500.0,0.00020271,2]
[349796379,1737433847640,-500.0,0.00020271,2]
[349796380,1737433847649,-1599.34,0.00020271,2]
[349796381,1737433847658,-1051.46,0.00020271,2]
[349796382,1737433847667,-500.0,0.00020271,2]
[349796383,1737433847677,-500.0,0.00020271,2]
[349796384,1737433847686,-1676.19,0.00020271,2]
[349796385,1737433847695,-1240.4,0.00020271,2]
[349796386,1737433847704,-500.0,0.00020271,2]
[349796387,1737433847714,-500.0,0.00020272,2]
[349796388,1737433847723,-500.0,0.00020272,2]
[349796389,1737433847732,-500.0,0.00020272,2]
[349796390,1737433847744,-500.0,0.00020272,2]
[349796391,1737433847754,-500.0,0.00020272,2]
[349796392,1737433847764,-500.0,0.00020272,2]
[349796393,1737433847774,-454.42289923,0.00020272,2]
[349796394,1737433847784,-533.49,0.00020272,2]
[349796395,1737433847793,-500.0,0.00020272,2]
[349796396,1737433847803,-500.0,0.00020272,2]
[349796397,1737433847812,-196.76483455,0.00020272,2]
[349796398,1737433847821,-500.0,0.00020272,2]
[349796399,1737433847830,-500.0,0.00020272,2]
[349796400,1737433847839,-212.03,0.00020272,2]
[349796401,1737433847849,-990.66,0.00020272,2]
[349796402,1737433847858,-500.0,0.00020272,2]
[349796403,1737433847868,-500.0,0.00020272,2]
[349796404,1737433847877,-500.0,0.00020272,2]
[349796405,1737433847886,-500.0,0.00020272,2]
[349796406,1737433847896,-300.57405097,0.00020272,2]
[349796407,1737433847906,-500.0,0.00020272,2]
[349796408,1737433847915,-500.0,0.00020272,2]
[349796409,1737433847924,-500.0,0.00020272,2]
[349796410,1737433847933,-500.0,0.00020272,2]
[349796411,1737433847943,-500.0,0.00020272,2]
[349796412,1737433847953,-500.0,0.00020272,2]
[349796413,1737433847962,-500.0,0.00020272,2]
[349796414,1737433847971,-500.0,0.00020272,2]
[349796415,1737433847981,-500.0,0.00020272,2]
[349796416,1737433847992,-500.0,0.00020272,2]
[349796417,1737433848001,-500.0,0.00020272,2]
[349796418,1737433848010,-500.0,0.00020272,2]
[349796419,1737433848019,-500.0,0.00020272,2]
[349796420,1737433848029,-500.0,0.00020272,2]
[349796421,1737433848038,-500.0,0.00020272,2]
[349796422,1737433848048,-500.0,0.00020272,2]
[349796423,1737433848057,-533.17771255,0.00020272,2]
[349796424,1737433848066,-500.0,0.00020272,2]
[349796425,1737433848076,-500.0,0.00020272,2]
[349796426,1737433848089,-500.0,0.00020272,2]
[349796427,1737433848099,-500.0,0.00020272,2]
[349796428,1737433848108,-500.0,0.00020272,2]
[349796429,1737433848118,-548.82,0.00020272,2]
[349796430,1737433848128,-500.0,0.00020272,2]
[349796431,1737433848138,-500.0,0.00020272,2]
[349796432,1737433848147,-500.0,0.00020272,2]
[349796433,1737433848157,-831.5,0.00020272,2]
[349796434,1737433848168,-500.0,0.00020272,2]
[349796435,1737433848178,-1445.57,0.00020272,2]
[349796436,1737433848187,-500.0,0.00020272,2]
[349796437,1737433848197,-1620.28,0.00020272,2]
[349796438,1737433848206,-500.0,0.00020272,2]
[349796439,1737433848217,-500.0,0.00020272,2]
[349796440,1737433848227,-554.32,0.00020272,2]
[349796441,1737433848239,-796.58,0.00020272,2]
[349796442,1737433848249,-500.0,0.00020272,2]
[349796443,1737433848259,-1054.81,0.00020272,2]
[349796444,1737433848269,-1002.73,0.00020272,2]
[349796445,1737433848279,-500.0,0.00020272,2]
[349796446,1737433848289,-500.0,0.00020272,2]
[349796447,1737433848299,-500.0,0.00020272,2]
[349796448,1737433848309,-500.0,0.00020272,2]
[349796449,1737433848319,-500.0,0.00020272,2]
[349796450,1737433848330,-816.46,0.00020272,2]
[349796451,1737433848340,-1000.0,0.00020272,2]
[349796452,1737433848350,-1052.49,0.00020272,2]
[349796453,1737433848360,-500.0,0.00020272,2]
[349796454,1737433848369,-500.0,0.00020272,2]
[349796455,1737433848379,-500.0,0.00020272,2]
[349796456,1737433848389,-1092.55,0.00020272,2]
[349796457,1737433848398,-405.65025118,0.00020272,2]
[349796458,1737433848407,-500.0,0.00020272,2]
[349796459,1737433848416,-500.0,0.00020272,2]
[349796460,1737433848426,-500.0,0.00020272,2]
[349796461,1737433848435,-500.0,0.00020272,2]
[349796462,1737433848445,-887.89,0.00020272,2]
[349796463,1737433848456,-500.0,0.00020272,2]
[349796464,1737433848466,-576.02,0.00020272,2]
[349796465,1737433848477,-500.0,0.00020272,2]
[349796466,1737433848486,-500.0,0.00020272,2]
[349796467,1737433848499,-500.0,0.00020272,2]
[349796468,1737433848508,-357.00137754,0.00020272,2]
[349796469,1737433848518,-500.0,0.00020272,2]
[349796470,1737433848529,-500.0,0.00020272,2]
[349796471,1737433848541,-500.0,0.00020272,2]
[349796472,1737433848552,-500.0,0.00020272,2]
[349796473,1737433848562,-500.0,0.00020272,2]
[349796474,1737433848571,-500.0,0.00020272,2]
[349796475,1737433848581,-500.0,0.00020272,2]
[349796476,1737433848591,-500.0,0.00020272,2]
[349796477,1737433848600,-500.0,0.00020272,2]
[349796478,1737433848610,-635.19,0.00020272,2]
[349796479,1737433848619,-502.46,0.00020272,2]
[349796480,1737433848629,-940.46,0.00020272,2]
[349796481,1737433848638,-685.84,0.00020272,2]
[349796482,1737433848648,-1735.78,0.00020272,2]
[349796483,1737433848658,-523.67398972,0.00020272,2]
[349796484,1737433848667,-500.0,0.00020272,2]
[349796485,1737433848677,-300.0,0.00020273,2]
[349796486,1737433848687,-566.64,0.00020273,2]
[349796487,1737433848696,-584.53069339,0.00020273,2]
[349796488,1737433848705,-500.0,0.00020273,2]
[349796489,1737433848715,-500.0,0.00020273,2]
[349796490,1737433848724,-500.0,0.00020273,2]
[349796491,1737433848733,-500.0,0.00020273,2]
[349796492,1737433848744,-500.0,0.00020273,2]
[349796493,1737433848754,-500.0,0.00020273,2]
[349796494,1737433848764,-500.0,0.00020273,2]
[349796495,1737433848774,-1334.1,0.00020273,2]
[349796496,1737433848784,-576.6,0.00020273,2]
[349796497,1737433848794,-500.0,0.00020273,2]
[349796498,1737433848804,-500.0,0.00020273,2]
[349796499,1737433848813,-500.0,0.00020273,2]
[349796500,1737433848823,-500.0,0.00020273,2]
[349796501,1737433848832,-500.0,0.00020273,2]
[349796502,1737433848843,-651.2,0.00020273,2]
[349796503,1737433848853,-581.24,0.00020273,2]
[349796504,1737433848863,-1294.73,0.00020273,2]
[349796505,1737433848873,-500.0,0.00020273,2]
[349796506,1737433848882,-902.8,0.00020273,2]
[349796507,1737433848892,-1475.03,0.00020273,2]
[349796508,1737433848902,-879.63,0.00020273,2]
[349796509,1737433848911,-1069.94,0.00020273,2]
[349796510,1737433848921,-245.47091151,0.00020273,2]
[349796511,1737433848930,-569.35,0.00020273,2]
[349796512,1737433848940,-676.8,0.00020273,2]
[349796513,1737433848949,-1251.4,0.00020273,2]
[349796514,1737433848959,-1689.0,0.00020273,2]
[349796515,1737433848969,-638.28,0.00020273,2]
[349796516,1737433848979,-576.63,0.00020273,2]
[349796517,1737433848988,-1637.61,0.00020273,2]
[349796518,1737433849000,-500.0,0.00020273,2]
[349796519,1737433849010,-500.0,0.00020273,2]
[349796520,1737433849019,-186.73442673,0.00020273,2]
[349796521,1737433849029,-795.98,0.00020273,2]
[349796522,1737433849039,-500.0,0.00020273,2]
[349796523,1737433849049,-1431.77,0.00020273,2]
[349796524,1737433849059,-500.0,0.00020273,2]
[349796525,1737433849069,-500.0,0.00020273,2]
[349796526,1737433849084,-414.30244784,0.00020424,2]
[349796527,1737433849094,-171.724417,0.00020494,2]
[349796528,1737433849104,-166.34,0.00020495,2]
[349796529,1737433849115,-448.0,0.00020521,2]
[349796530,1737433849125,-659.87,0.00020544,2]
[349796531,1737433849135,-708.04,0.00020544,2]
[349796532,1737433849146,-1068.35,0.00020544,2]
[349796533,1737433849157,-500.0,0.00020544,2]
[349796534,1737433849167,-500.0,0.00020544,2]
[349796535,1737433849177,-1199.12,0.00020544,2]
[349796536,1737433849187,-924.69,0.00020544,2]
[349796537,1737433849197,-500.0,0.00020544,2]
[349796538,1737433849207,-2010.2,0.00020544,2]
[349796539,1737433849217,-750.23,0.00020544,2]
[349796540,1737433849228,-500.0,0.00020544,2]
[349796541,1737433849238,-1053.1,0.00020544,2]
[349796542,1737433849254,-745.4,0.00020544,2]
[349796543,1737433849264,-500.0,0.00020545,2]
[349796544,1737433849275,-500.0,0.00020545,2]
[349796545,1737433849286,-500.0,0.00020545,2]
[349796546,1737433849297,-500.0,0.00020545,2]
[349796547,1737433849309,-500.0,0.00020545,2]
[349796548,1737433849319,-500.0,0.00020545,2]
[349796549,1737433849329,-500.0,0.00020545,2]
[349796550,1737433849342,-500.0,0.00020545,2]
[349796551,1737433849355,-500.0,0.00020545,2]
[349796552,1737433849365,-500.0,0.00020545,2]
[349796553,1737433849376,-197.64529,0.00020545,2]
[349796554,1737433849386,-507.62,0.00020545,2]
[349796555,1737433849396,-500.0,0.00020545,2]
[349796556,1737433849406,-503.07,0.00020545,2]
[349796557,1737433849416,-174.199579,0.00020545,2]
[349796558,1737433849426,-500.0,0.00020545,2]
[349796559,1737433849436,-509.9,0.00020545,2]
[349796560,1737433849446,-500.0,0.00020545,2]
[349796561,1737433849457,-272.941629,0.00020545,2]
[349796562,1737433849466,-566.18,0.00020545,2]
[349796563,1737433849476,-500.0,0.00020545,2]
[349796564,1737433849486,-500.0,0.00020545,2]
[349796565,1737433849502,-500.0,0.00020545,2]
[349796566,1737433849512,-500.0,0.00020545,2]
[349796567,1737433849571,-1178.4,0.00020545,2]
[349796568,1737433849581,-500.0,0.00020545,2]
[349796569,1737433849592,-173.748948,0.00020545,2]
[349796570,1737433849601,-821.32,0.00020545,2]
[349796571,1737433849611,-1322.96,0.00020545,2]
[349796572,1737433849620,-1661.3,0.00020545,2]
[349796573,1737433849630,-203.618385,0.00020545,2]
[349796574,1737433849640,-1983.15,0.00020545,2]
[349796575,1737433849649,-775.24,0.00020545,2]
[349796576,1737433849661,-1911.41,0.00020545,2]
[349796577,1737433849670,-500.0,0.00020545,2]
[349796578,1737433849680,-174.057901,0.00020545,2]
[349796579,1737433849690,-500.0,0.00020545,2]
[349796580,1737433849700,-2632.11,0.00020545,2]
[349796581,1737433849710,-500.0,0.00020545,2]
[349796582,1737433849719,-204.340406,0.00020545,2]
[349796583,1737433849729,-500.0,0.00020545,2]
[349796584,1737433849739,-500.0,0.00020545,2]
[349796585,1737433849754,-500.0,0.00020545,2]
[349796586,1737433849765,-731.98,0.00020545,2]
[349796587,1737433849776,-842.77,0.00020545,2]
[349796588,1737433849786,-1601.06,0.00020545,2]
[349796589,1737433849796,-500.0,0.00020545,2]
[349796590,1737433849806,-500.0,0.00020545,2]
[349796591,1737433849816,-1599.34,0.00020545,2]
[349796592,1737433849826,-1051.46,0.00020545,2]
[349796593,1737433849841,-500.0,0.00020545,2]
[349796594,1737433849851,-500.0,0.00020545,2]
[349796595,1737433849860,-1676.19,0.00020545,2]
[349796596,1737433849871,-1240.4,0.00020545,2]
[349796597,1737433849881,-500.0,0.00020545,2]
[349796598,1737433849890,-500.0,0.00020546,2]
[349796599,1737433849900,-500.0,0.00020546,2]
[349796600,1737433849911,-500.0,0.00020546,2]
[349796601,1737433849921,-500.0,0.00020546,2]
[349796602,1737433849932,-533.49,0.00020546,2]
[349796603,1737433849943,-500.0,0.00020546,2]
[349796604,1737433849953,-635.44178521,0.00020546,2]
[349796605,1737433849963,-500.0,0.00020546,2]
[349796606,1737433849973,-990.66,0.00020546,2]
[349796607,1737433849983,-500.0,0.00020546,2]
[349796608,1737433849997,-500.0,0.00020546,2]
[349796609,1737433850007,-500.0,0.00020546,2]
[349796610,1737433850017,-500.0,0.00020546,2]
[349796611,1737433850027,-500.0,0.00020546,2]
[349796612,1737433850037,-500.0,0.00020546,2]
[349796613,1737433850047,-500.0,0.00020546,2]
[349796614,1737433850058,-500.0,0.00020546,2]
[349796615,1737433850070,-500.0,0.00020546,2]
[349796616,1737433850079,-369.09098925,0.00020546,2]
[349796617,1737433850091,-500.0,0.00020546,2]
[349796618,1737433850102,-500.0,0.00020546,2]
[349796619,1737433850112,-500.0,0.00020546,2]
[349796620,1737433850121,-500.0,0.00020546,2]
[349796621,1737433850131,-500.0,0.00020546,2]
[349796622,1737433850141,-500.0,0.00020546,2]
[349796623,1737433850151,-500.0,0.00020546,2]
[349796624,1737433850162,-500.0,0.00020546,2]
[349796625,1737433850172,-500.0,0.00020546,2]
[349796626,1737433850182,-500.0,0.00020546,2]
[349796627,1737433850192,-500.0,0.00020546,2]
[349796628,1737433850202,-548.82,0.00020546,2]
[349796629,1737433850212,-530.46,0.00020546,2]
[349796630,1737433850223,-500.0,0.00020546,2]
[349796631,1737433850232,-500.0,0.00020546,2]
[349796632,1737433850246,-831.5,0.00020546,2]
[349796633,1737433850257,-500.0,0.00020546,2]
[349796634,1737433850268,-1445.57,0.00020546,2]
[349796635,1737433850278,-500.0,0.00020546,2]
[349796636,1737433850289,-1620.28,0.00020546,2]
[349796637,1737433850298,-500.0,0.00020546,2]
[349796638,1737433850309,-500.0,0.00020546,2]
[349796639,1737433850319,-554.32,0.00020546,2]
[349796640,1737433850329,-796.58,0.00020546,2]
[349796641,1737433850340,-500.0,0.00020546,2]
[349796642,1737433850351,-1054.81,0.00020546,2]
[349796643,1737433850362,-1002.73,0.00020546,2]
[349796644,1737433850373,-500.0,0.00020546,2]
[349796645,1737433850383,-500.0,0.00020546,2]
[349796646,1737433850393,-500.0,0.00020546,2]
[349796647,1737433850403,-188.00808086,0.00020546,2]
[349796648,1737433850413,-541.01728264,0.00020546,2]
[349796649,1737433850423,-816.46,0.00020546,2]
[349796650,1737433850433,-1000.0,0.00020546,2]
[349796651,1737433850443,-1052.49,0.00020546,2]
[349796652,1737433850453,-500.0,0.00020546,2]
[349796653,1737433850464,-500.0,0.00020546,2]
[349796654,1737433850476,-500.0,0.00020546,2]
[349796655,1737433850486,-1092.55,0.00020546,2]
[349796656,1737433850501,-500.0,0.00020546,2]
[349796657,1737433850511,-500.0,0.00020546,2]
[349796658,1737433850521,-500.0,0.00020546,2]
[349796659,1737433850531,-500.0,0.00020546,2]
[349796660,1737433850540,-887.89,0.00020546,2]
[349796661,1737433850549,-500.0,0.00020546,2]
[349796662,1737433850559,-576.02,0.00020546,2]
[349796663,1737433850568,-500.0,0.00020546,2]
[349796664,1737433850577,-500.0,0.00020546,2]
[349796665,1737433850587,-500.0,0.00020546,2]
[349796666,1737433850597,-500.0,0.00020546,2]
[349796667,1737433850606,-500.0,0.00020546,2]
[349796668,1737433850616,-500.0,0.00020546,2]
[349796669,1737433850626,-500.0,0.00020546,2]
[349796670,1737433850635,-433.0471027,0.00020546,2]
[349796671,1737433850645,-500.0,0.00020546,2]
[349796672,1737433850654,-500.0,0.00020546,2]
[349796673,1737433850664,-500.0,0.00020546,2]
[349796674,1737433850674,-500.0,0.00020546,2]
[349796675,1737433850684,-635.19,0.00020546,2]
[349796676,1737433850694,-502.46,0.00020546,2]
[349796677,1737433850708,-940.46,0.00020546,2]
[349796678,1737433850718,-685.84,0.00020546,2]
[349796679,1737433850728,-1735.78,0.00020546,2]
[349796680,1737433850738,-500.0,0.00020546,2]
[349796681,1737433850752,-300.0,0.00020547,2]
[349796682,1737433850762,-566.64,0.00020547,2]
[349796683,1737433850773,-372.423621,0.00020547,2]
[349796684,1737433850784,-500.0,0.00020547,2]
[349796685,1737433850794,-500.0,0.00020547,2]
[349796686,1737433850804,-500.0,0.00020547,2]
[349796687,1737433850814,-500.0,0.00020547,2]
[349796688,1737433850824,-500.0,0.00020547,2]
[349796689,1737433850834,-500.0,0.00020547,2]
[349796690,1737433850844,-1334.1,0.00020547,2]
[349796691,1737433850853,-576.6,0.00020547,2]
[349796692,1737433850863,-500.0,0.00020547,2]
[349796693,1737433850873,-500.0,0.00020547,2]
[349796694,1737433850883,-500.0,0.00020547,2]
[349796695,1737433850893,-500.0,0.00020547,2]
[349796696,1737433850903,-500.0,0.00020547,2]
[349796697,1737433850913,-651.2,0.00020547,2]
[349796698,1737433850923,-581.24,0.00020547,2]
[349796699,1737433850933,-1294.73,0.00020547,2]
[349796700,1737433850943,-500.0,0.00020547,2]
[349796701,1737433850953,-902.8,0.00020547,2]
[349796702,1737433850963,-1475.03,0.00020547,2]
[349796703,1737433850972,-879.63,0.00020547,2]
[349796704,1737433850982,-1069.94,0.00020547,2]
[349796705,1737433850995,-569.35,0.00020547,2]
[349796706,1737433851006,-676.8,0.00020547,2]
[349796707,1737433851016,-1251.4,0.00020547,2]
[349796708,1737433851026,-1689.0,0.00020547,2]
[349796709,1737433851037,-638.28,0.00020547,2]
[349796710,1737433851047,-576.63,0.00020547,2]
[349796711,1737433851058,-1637.61,0.00020547,2]
[349796712,1737433851068,-500.0,0.00020547,2]
[349796713,1737433851083,-500.0,0.00020547,2]
[349796714,1737433851093,-795.98,0.00020547,2]
[349796715,1737433851103,-500.0,0.00020547,2]
[349796716,1737433851114,-1431.77,0.00020547,2]
[349796717,1737433851124,-500.0,0.00020547,2]
[349796718,1737433851134,-315.8667381,0.00020547,2]
[349796719,1737433851143,-210.0,0.0002057,2]
[349796720,1737433851153,-414.30244784,0.00020597,2]
[349796721,1737433851164,-9076.38618508,0.00020604,2]
[349796722,1737433851174,-206.63013759,0.0002065,2]
[349796723,1737433851185,-659.87,0.00020818,2]
[349796724,1737433851195,-708.04,0.00020818,2]
[349796725,1737433851206,-1068.35,0.00020818,2]
[349796726,1737433851216,-359.78158138,0.00020818,2]
[349796727,1737433851226,-500.0,0.00020818,2]
[349796728,1737433851236,-1199.12,0.00020818,2]
[349796729,1737433851249,-924.69,0.00020818,2]
[349796730,1737433851260,-500.0,0.00020818,2]
[349796731,1737433851271,-2010.2,0.00020818,2]
[349796732,1737433851281,-750.23,0.00020818,2]
[349796733,1737433851291,-500.0,0.00020818,2]
[349796734,1737433851302,-1053.1,0.00020818,2]
[349796735,1737433851313,-745.4,0.00020818,2]
[349796736,1737433851323,-164.91663538,0.00020819,2]
[349796737,1737433851333,-500.0,0.00020819,2]
[349796738,1737433851343,-425.02306934,0.00020819,2]
[349796739,1737433851353,-500.0,0.00020819,2]
[349796740,1737433851362,-500.0,0.00020819,2]
[349796741,1737433851372,-500.0,0.00020819,2]
[349796742,1737433851381,-500.0,0.00020819,2]
[349796743,1737433851390,-500.0,0.00020819,2]
[349796744,1737433851400,-500.0,0.00020819,2]
[349796745,1737433851410,-219.44923231,0.00020819,2]
[349796746,1737433851419,-197.64529,0.00020819,2]